[Event "Early-Titled-Tuesday-Blitz-January-16-2024"]
[Site "Chess.com"]
[Date "2024.01.16"]
[Round "10"]
[White "santosalberto1987"]
[Black "Ducke13"]
[Result "1-0"]
[WhiteElo "2504"]
[BlackElo "2337"]
[TimeControl "180+1"]
[EndTime "9:59:13 PST"]
[Termination "santosalberto1987 won by resignation"]

1. e4 {[%clk 0:03:00.9]} 1... c5 {[%clk 0:02:55.8]} 2. Nf3 {[%clk 0:02:56.8]}
2... d6 {[%clk 0:02:56]} 3. Bb5+ {[%clk 0:02:55.9]} 3... Nd7 {[%clk 0:02:55]} 4.
d4 {[%clk 0:02:55.6]} 4... cxd4 {[%clk 0:02:51.8]} 5. Qxd4 {[%clk 0:02:56.5]}
5... a6 {[%clk 0:02:43.9]} 6. Bxd7+ {[%clk 0:02:54.7]} 6... Bxd7 {[%clk
0:02:41.3]} 7. Nc3 {[%clk 0:02:54.7]} 7... e5 {[%clk 0:02:24.4]} 8. Qd3 {[%clk
0:02:54.5]} 8... h6 {[%clk 0:02:24.9]} 9. Nd2 {[%clk 0:02:54.6]} 9... b5 {[%clk
0:02:11.5]} 10. Nf1 {[%clk 0:02:51.4]} 10... Rc8 {[%clk 0:02:05.5]} 11. Ne3
{[%clk 0:02:51]} 11... Nf6 {[%clk 0:02:03.7]} 12. O-O {[%clk 0:02:48.4]} 12...
Be7 {[%clk 0:01:52]} 13. Ncd5 {[%clk 0:02:47.7]} 13... O-O {[%clk 0:01:51.5]}
14. Nxf6+ {[%clk 0:02:43.4]} 14... Bxf6 {[%clk 0:01:51.5]} 15. Qxd6 {[%clk
0:02:39.5]} 15... Rxc2 {[%clk 0:01:50.5]} 16. Nxc2 {[%clk 0:02:39.1]} 16... a5
{[%clk 0:01:45.9]} 17. Rd1 {[%clk 0:02:37.4]} 17... Qc8 {[%clk 0:01:46.4]} 18.
Ne3 {[%clk 0:02:28.1]} 18... Be6 {[%clk 0:01:43.3]} 19. Nd5 {[%clk 0:02:26.9]}
19... Bd8 {[%clk 0:01:42.6]} 20. Be3 {[%clk 0:02:19.8]} 20... a4 {[%clk
0:01:42.3]} 21. Ne7+ {[%clk 0:02:10.7]} 21... Bxe7 {[%clk 0:01:42]} 22. Qxe7
{[%clk 0:02:11.6]} 22... Qc2 {[%clk 0:01:40.7]} 23. Bc5 {[%clk 0:01:25.9]} 23...
Rc8 {[%clk 0:01:36.2]} 24. Ba3 {[%clk 0:01:05]} 24... Qxe4 {[%clk 0:01:35]} 25.
Rd8+ {[%clk 0:01:02.8]} 25... Rxd8 {[%clk 0:01:23.7]} 26. Qxd8+ {[%clk
0:01:03.7]} 26... Kh7 {[%clk 0:01:24.4]} 27. Rd1 {[%clk 0:01:03.7]} 27... f5
{[%clk 0:01:15.1]} 28. h3 {[%clk 0:00:58.2]} 28... Bxa2 {[%clk 0:01:07]} 29. Bf8
{[%clk 0:00:55.9]} 29... Qc4 {[%clk 0:00:29.1]} 30. Qe7 {[%clk 0:00:49.8]} 30...
Qg8 {[%clk 0:00:22.5]} 31. Rd7 {[%clk 0:00:48.2]} 31... Be6 {[%clk 0:00:16.4]}
32. Rc7 {[%clk 0:00:39.7]} 32... Kg6 {[%clk 0:00:05.5]} 33. Bxg7 {[%clk
0:00:36.8]} 33... Qf7 {[%clk 0:00:01]} 34. Qxf7+ {[%clk 0:00:29.6]} 34... Bxf7
{[%clk 0:00:01.9]} 35. Bxe5 {[%clk 0:00:29.9]} 35... b4 {[%clk 0:00:01.9]} 36.
Ra7 {[%clk 0:00:26.8]} 36... a3 {[%clk 0:00:01.8]} 37. bxa3 {[%clk 0:00:26.6]}
37... bxa3 {[%clk 0:00:02.7]} 38. Rxa3 {[%clk 0:00:25.1]} 38... f4 {[%clk
0:00:03.1]} 39. Bxf4 {[%clk 0:00:24.6]} 39... h5 {[%clk 0:00:03]} 40. g4 {[%clk
0:00:22.4]} 40... hxg4 {[%clk 0:00:03]} 41. hxg4 {[%clk 0:00:23.3]} 41... Bd5
{[%clk 0:00:02.9]} 42. Kh2 {[%clk 0:00:22.4]} 42... Bc4 {[%clk 0:00:03.1]} 43.
Kg3 {[%clk 0:00:22.6]} 43... Be2 {[%clk 0:00:03.2]} 44. Re3 {[%clk 0:00:22.5]}
44... Bf1 {[%clk 0:00:03]} 45. Re6+ {[%clk 0:00:22.2]} 45... Kf7 {[%clk
0:00:03.4]} 46. Rb6 {[%clk 0:00:22.7]} 46... Bd3 {[%clk 0:00:02.6]} 47. Be5
{[%clk 0:00:22.8]} 47... Be4 {[%clk 0:00:03]} 48. Kf4 {[%clk 0:00:22]} 48... Bd5
{[%clk 0:00:03.5]} 49. Kf5 {[%clk 0:00:21]} 49... Bf3 {[%clk 0:00:01.8]} 50. Ra6
{[%clk 0:00:20.5]} 50... Kg8 {[%clk 0:00:01.7]} 51. Ra7 {[%clk 0:00:20.3]} 51...
Kf8 {[%clk 0:00:01.9]} 52. Kf6 {[%clk 0:00:18.4]} 52... Kg8 {[%clk 0:00:02.2]}
53. g5 {[%clk 0:00:17.7]} 53... Kf8 {[%clk 0:00:02]} 54. g6 {[%clk 0:00:16.7]}
54... Kg8 {[%clk 0:00:01.9]} 55. Kg5 {[%clk 0:00:14.6]} 55... Bc6 {[%clk
0:00:02.2]} 56. Rh7 {[%clk 0:00:14.4]} 56... Kf8 {[%clk 0:00:02.5]} 57. Kf6
{[%clk 0:00:09.9]} 57... Bd5 {[%clk 0:00:02.6]} 58. Rh8+ {[%clk 0:00:09.4]}
58... Bg8 {[%clk 0:00:02.5]} 59. g7+ {[%clk 0:00:09.5]} 59... Ke8 {[%clk
0:00:03.1]} 60. Rxg8+ {[%clk 0:00:09.8]} 60... Kd7 {[%clk 0:00:04]} 61. Rf8
{[%clk 0:00:09.5]} 61... Kc6 {[%clk 0:00:04.9]} 62. Rd8 {[%clk 0:00:09.5]} 62...
Kb7 {[%clk 0:00:05.7]} 63. g8=Q {[%clk 0:00:09.2]} 63... Ka7 {[%clk 0:00:05.9]}
64. Qf7+ {[%clk 0:00:08.4]} 64... Ka6 {[%clk 0:00:06.1]} 65. Qc4+ {[%clk
0:00:08.4]} 65... Kb7 {[%clk 0:00:06]} 66. Ke6 {[%clk 0:00:07.1]} 66... Ka7
{[%clk 0:00:06.9]} 67. Kf5 {[%clk 0:00:07.2]} 67... Kb6 {[%clk 0:00:07.8]} 68.
Kg4 {[%clk 0:00:07.5]} 68... Ka7 {[%clk 0:00:08.7]} 69. Kh3 {[%clk 0:00:08]}
69... Kb7 {[%clk 0:00:09.6]} 70. Kg2 {[%clk 0:00:08.4]} 70... Kb6 {[%clk
0:00:10.5]} 71. Kf1 {[%clk 0:00:08.7]} 71... Kb7 {[%clk 0:00:11.4]} 72. f3
{[%clk 0:00:08.5]} 72... Ka7 {[%clk 0:00:12.3]} 73. Kg1 {[%clk 0:00:09.2]} 73...
Kb6 {[%clk 0:00:13.2]} 1-0

[Event "Early-Titled-Tuesday-Blitz-January-16-2024"]
[Site "Chess.com"]
[Date "2024.01.16"]
[Round "10"]
[White "rasmussvane"]
[Black "jcibarra"]
[Result "0-1"]
[WhiteElo "2990"]
[BlackElo "2877"]
[TimeControl "180+1"]
[EndTime "9:59:17 PST"]
[Termination "jcibarra won on time"]

1. Nf3 {[%clk 0:03:00.9]} 1... Nf6 {[%clk 0:02:56.1]} 2. g3 {[%clk 0:03:01.1]}
2... g6 {[%clk 0:02:54.4]} 3. Bg2 {[%clk 0:03:01.5]} 3... d6 {[%clk 0:02:54.7]}
4. d4 {[%clk 0:03:01.3]} 4... Bg7 {[%clk 0:02:55.4]} 5. O-O {[%clk 0:03:01.6]}
5... O-O {[%clk 0:02:56]} 6. Re1 {[%clk 0:03:01.8]} 6... Nbd7 {[%clk 0:02:55.4]}
7. e4 {[%clk 0:03:00.5]} 7... e5 {[%clk 0:02:56.1]} 8. Nc3 {[%clk 0:03:00.6]}
8... b6 {[%clk 0:02:55.4]} 9. a4 {[%clk 0:02:53.6]} 9... a5 {[%clk 0:02:55.4]}
10. b3 {[%clk 0:02:50.9]} 10... Bb7 {[%clk 0:02:53.7]} 11. dxe5 {[%clk 0:02:51]}
11... dxe5 {[%clk 0:02:53.5]} 12. Nd2 {[%clk 0:02:50.6]} 12... Re8 {[%clk
0:02:52.7]} 13. Nc4 {[%clk 0:02:45.7]} 13... Bf8 {[%clk 0:02:45.1]} 14. Qe2
{[%clk 0:02:30]} 14... Bb4 {[%clk 0:02:40.2]} 15. Bd2 {[%clk 0:02:16.1]} 15...
Ba6 {[%clk 0:02:15.7]} 16. Red1 {[%clk 0:02:14.1]} 16... Qe7 {[%clk 0:02:12.3]}
17. Bf1 {[%clk 0:01:52]} 17... Nc5 {[%clk 0:02:05.8]} 18. Qe3 {[%clk 0:01:25.6]}
18... Ne6 {[%clk 0:01:49.2]} 19. Nd5 {[%clk 0:01:18.3]} 19... Nxd5 {[%clk
0:01:46.3]} 20. exd5 {[%clk 0:01:19.2]} 20... Bc5 {[%clk 0:01:17.2]} 21. Qxe5
{[%clk 0:00:39.6]} 21... Bd4 {[%clk 0:01:17.2]} 22. Qe4 {[%clk 0:00:39.1]} 22...
Bxa1 {[%clk 0:01:15.6]} 23. Rxa1 {[%clk 0:00:40]} 23... Qf6 {[%clk 0:01:09.4]}
24. dxe6 {[%clk 0:00:29.7]} 24... Qxa1 {[%clk 0:01:07.5]} 25. exf7+ {[%clk
0:00:30.1]} 25... Kxf7 {[%clk 0:01:08.2]} 26. Qf4+ {[%clk 0:00:07]} 26... Qf6
{[%clk 0:01:06.5]} 27. Qxc7+ {[%clk 0:00:06.5]} 27... Re7 {[%clk 0:01:07]} 28.
Qxb6 {[%clk 0:00:04.5]} 28... Qf3 {[%clk 0:00:24.6]} 29. Nd6+ {[%clk 0:00:03.4]}
29... Kg7 {[%clk 0:00:25]} 30. Bxa6 {[%clk 0:00:02.8]} 30... Qd1+ {[%clk
0:00:25.7]} 31. Kg2 {[%clk 0:00:02.8]} 31... Qxd2 {[%clk 0:00:26.3]} 32. Bd3
{[%clk 0:00:02.3]} 32... Rf8 {[%clk 0:00:17.2]} 33. Ne4 {[%clk 0:00:02]} 33...
Qc1 {[%clk 0:00:11.2]} 34. Qd4+ {[%clk 0:00:02.4]} 34... Kh6 {[%clk 0:00:11.5]}
35. h4 {[%clk 0:00:02.5]} 35... Qd1 {[%clk 0:00:09.4]} 36. Nf6 {[%clk
0:00:02.8]} 36... Ref7 {[%clk 0:00:06.2]} 37. Ng4+ {[%clk 0:00:03.2]} 37... Kh5
{[%clk 0:00:05.6]} 38. Ne5 {[%clk 0:00:03.8]} 38... Rxf2+ {[%clk 0:00:04.8]} 39.
Qxf2 {[%clk 0:00:04.7]} 39... Rxf2+ {[%clk 0:00:04.8]} 40. Kxf2 {[%clk
0:00:05.6]} 40... Qd2+ {[%clk 0:00:05.3]} 41. Kf3 {[%clk 0:00:06.2]} 41... Kh6
{[%clk 0:00:04.7]} 42. Nc4 {[%clk 0:00:06.1]} 42... Qc3 {[%clk 0:00:04.9]} 43.
Ke4 {[%clk 0:00:06.4]} 43... Kg7 {[%clk 0:00:05.3]} 44. Kd5 {[%clk 0:00:07]}
44... Qe1 {[%clk 0:00:04.9]} 45. Kc5 {[%clk 0:00:06.8]} 45... Qxg3 {[%clk
0:00:05.1]} 46. Nxa5 {[%clk 0:00:07.4]} 46... Qxh4 {[%clk 0:00:05.1]} 47. Nc6
{[%clk 0:00:07.6]} 47... Qf2+ {[%clk 0:00:05.5]} 48. Kb5 {[%clk 0:00:07.8]}
48... h5 {[%clk 0:00:06.2]} 49. a5 {[%clk 0:00:08.3]} 49... h4 {[%clk
0:00:06.9]} 50. a6 {[%clk 0:00:08.9]} 50... h3 {[%clk 0:00:02.7]} 51. a7 {[%clk
0:00:08.7]} 51... h2 {[%clk 0:00:02.8]} 52. a8=Q {[%clk 0:00:06.9]} 52... h1=Q
{[%clk 0:00:02.5]} 53. Qb7+ {[%clk 0:00:07.4]} 53... Qf7 {[%clk 0:00:02.4]} 54.
Qxf7+ {[%clk 0:00:05.5]} 54... Kxf7 {[%clk 0:00:02.9]} 55. Ne5+ {[%clk
0:00:06.4]} 55... Ke6 {[%clk 0:00:02.6]} 56. Nxg6 {[%clk 0:00:06.5]} 56... Qb7+
{[%clk 0:00:02.8]} 57. Kc5 {[%clk 0:00:06.4]} 57... Qd5+ {[%clk 0:00:02.5]} 58.
Kb4 {[%clk 0:00:07]} 58... Kd6 {[%clk 0:00:02.9]} 59. Kc3 {[%clk 0:00:06.4]}
59... Qc5+ {[%clk 0:00:03.1]} 60. Kd2 {[%clk 0:00:06.9]} 60... Qf2+ {[%clk
0:00:03.2]} 61. Kc3 {[%clk 0:00:07.2]} 61... Kc5 {[%clk 0:00:03.8]} 62. b4+
{[%clk 0:00:06.5]} 62... Kd5 {[%clk 0:00:03.5]} 63. Ne7+ {[%clk 0:00:05.7]}
63... Ke6 {[%clk 0:00:03.6]} 64. Nc6 {[%clk 0:00:05.7]} 64... Qe1+ {[%clk
0:00:04.2]} 65. Kc4 {[%clk 0:00:05.5]} 65... Qh4+ {[%clk 0:00:03.7]} 66. Nd4+
{[%clk 0:00:05.4]} 66... Ke5 {[%clk 0:00:03.7]} 67. c3 {[%clk 0:00:06.3]} 67...
Qg5 {[%clk 0:00:02.4]} 68. Nc6+ {[%clk 0:00:05.7]} 68... Kd6 {[%clk 0:00:02.8]}
69. b5 {[%clk 0:00:04.9]} 69... Qd5+ {[%clk 0:00:03.2]} 70. Kb4 {[%clk 0:00:05]}
70... Qxd3 {[%clk 0:00:03.9]} 71. c4 {[%clk 0:00:05]} 71... Qd2+ {[%clk
0:00:03.8]} 72. Kb3 {[%clk 0:00:05.3]} 72... Kc5 {[%clk 0:00:04.5]} 0-1

[Event "Early-Titled-Tuesday-Blitz-January-16-2024"]
[Site "Chess.com"]
[Date "2024.01.16"]
[Round "10"]
[White "GothamChess"]
[Black "stollenmonster"]
[Result "1-0"]
[WhiteElo "2739"]
[BlackElo "2880"]
[TimeControl "180+1"]
[EndTime "9:59:22 PST"]
[Termination "GothamChess won by resignation"]

1. e4 {[%clk 0:03:00.9]} 1... e5 {[%clk 0:02:58.8]} 2. Nf3 {[%clk 0:03:00.2]}
2... Nc6 {[%clk 0:02:59.3]} 3. c3 {[%clk 0:03:00.4]} 3... d5 {[%clk 0:02:46.6]}
4. Qa4 {[%clk 0:03:00]} 4... Bd7 {[%clk 0:02:32.8]} 5. exd5 {[%clk 0:02:59.7]}
5... Nd4 {[%clk 0:02:31.6]} 6. Qd1 {[%clk 0:03:00.1]} 6... Nxf3+ {[%clk
0:02:30.9]} 7. Qxf3 {[%clk 0:03:00.2]} 7... Nf6 {[%clk 0:02:29.8]} 8. Bc4 {[%clk
0:03:00.4]} 8... Bc5 {[%clk 0:02:25.2]} 9. d3 {[%clk 0:02:56.9]} 9... h6 {[%clk
0:02:16.4]} 10. Be3 {[%clk 0:02:52.4]} 10... Qe7 {[%clk 0:02:14.6]} 11. Nd2
{[%clk 0:02:39.6]} 11... O-O {[%clk 0:02:08]} 12. h3 {[%clk 0:02:29.6]} 12...
Rae8 {[%clk 0:02:02.2]} 13. O-O {[%clk 0:02:17.3]} 13... c6 {[%clk 0:01:54.4]}
14. Ne4 {[%clk 0:01:53.6]} 14... Nxe4 {[%clk 0:01:51.8]} 15. dxe4 {[%clk
0:01:51]} 15... Kh8 {[%clk 0:01:27.1]} 16. Rad1 {[%clk 0:01:38]} 16... f5 {[%clk
0:01:21.2]} 17. exf5 {[%clk 0:01:09.1]} 17... Bxf5 {[%clk 0:01:15.3]} 18. Qg3
{[%clk 0:00:58.2]} 18... Bd6 {[%clk 0:01:07.3]} 19. dxc6 {[%clk 0:00:57]} 19...
bxc6 {[%clk 0:01:08.2]} 20. Rfe1 {[%clk 0:00:33.2]} 20... Rf6 {[%clk 0:01:02.9]}
21. Qh4 {[%clk 0:00:31.2]} 21... Qc7 {[%clk 0:00:53.8]} 22. Bd3 {[%clk
0:00:21.3]} 22... e4 {[%clk 0:00:50]} 23. Bc2 {[%clk 0:00:20.3]} 23... Rg6
{[%clk 0:00:41.2]} 24. Qh5 {[%clk 0:00:19.5]} 24... Rf8 {[%clk 0:00:36]} 25. Kh1
{[%clk 0:00:15.2]} 25... Bf4 {[%clk 0:00:30.9]} 26. Bc5 {[%clk 0:00:11.1]} 26...
Rg5 {[%clk 0:00:19]} 27. Qh4 {[%clk 0:00:10]} 27... Re8 {[%clk 0:00:19.3]} 28.
Be3 {[%clk 0:00:07.6]} 28... Bxe3 {[%clk 0:00:15.9]} 29. Rxe3 {[%clk 0:00:08.5]}
29... Bg6 {[%clk 0:00:15.5]} 30. Rde1 {[%clk 0:00:07.1]} 30... Rf8 {[%clk
0:00:15.3]} 31. Bxe4 {[%clk 0:00:05.8]} 31... Bxe4 {[%clk 0:00:15]} 32. Rxe4
{[%clk 0:00:05.7]} 32... Qb8 {[%clk 0:00:14.5]} 33. R4e2 {[%clk 0:00:05.8]}
33... Kh7 {[%clk 0:00:14.5]} 34. b3 {[%clk 0:00:06.1]} 34... Qb5 {[%clk
0:00:14.2]} 35. Qe4+ {[%clk 0:00:06.4]} 35... Kh8 {[%clk 0:00:14.2]} 36. c4
{[%clk 0:00:06.9]} 36... Qa5 {[%clk 0:00:14.6]} 37. Qc2 {[%clk 0:00:05.1]} 37...
Rgf5 {[%clk 0:00:14.6]} 38. f3 {[%clk 0:00:04.6]} 38... Qd8 {[%clk 0:00:14.6]}
39. Qe4 {[%clk 0:00:04.3]} 39... Rf4 {[%clk 0:00:14.4]} 40. Qe3 {[%clk
0:00:04.5]} 40... Qh4 {[%clk 0:00:14.4]} 41. Qxa7 {[%clk 0:00:04.3]} 41... Rxf3
{[%clk 0:00:09.7]} 42. Qe7 {[%clk 0:00:02.3]} 42... Rf1+ {[%clk 0:00:08.9]} 43.
Rxf1 {[%clk 0:00:01.4]} 43... Rxf1+ {[%clk 0:00:09.8]} 44. Kh2 {[%clk
0:00:01.4]} 44... Qf4+ {[%clk 0:00:09.9]} 45. g3 {[%clk 0:00:02]} 45... Rf2+
{[%clk 0:00:10.2]} 46. Rxf2 {[%clk 0:00:01.9]} 46... Qxf2+ {[%clk 0:00:11.1]}
47. Kh1 {[%clk 0:00:01.8]} 47... Qf1+ {[%clk 0:00:11.6]} 48. Kh2 {[%clk
0:00:02.4]} 48... Qf2+ {[%clk 0:00:12.3]} 49. Kh1 {[%clk 0:00:03]} 49... Qxg3
{[%clk 0:00:13]} 50. Qe8+ {[%clk 0:00:03.1]} 50... Kh7 {[%clk 0:00:13.6]} 51.
Qe4+ {[%clk 0:00:03.3]} 51... g6 {[%clk 0:00:13.1]} 52. Qg2 {[%clk 0:00:02.4]}
52... Qe1+ {[%clk 0:00:12.8]} 53. Kh2 {[%clk 0:00:03.2]} 53... Qe5+ {[%clk
0:00:13.4]} 54. Kg1 {[%clk 0:00:03.8]} 54... Qe1+ {[%clk 0:00:13.6]} 55. Qf1
{[%clk 0:00:04.3]} 55... Qe3+ {[%clk 0:00:13.4]} 56. Kg2 {[%clk 0:00:04.1]}
56... Qg5+ {[%clk 0:00:13]} 57. Kh1 {[%clk 0:00:04.2]} 57... Qd2 {[%clk
0:00:13.2]} 58. Qf7+ {[%clk 0:00:03.6]} 58... Kh8 {[%clk 0:00:13.5]} 59. Qf6+
{[%clk 0:00:03.2]} 59... Kh7 {[%clk 0:00:13.4]} 60. Qf7+ {[%clk 0:00:03.6]}
60... Kh8 {[%clk 0:00:13.9]} 61. Qxg6 {[%clk 0:00:04]} 61... Qd1+ {[%clk
0:00:13.5]} 62. Qg1 {[%clk 0:00:03.1]} 62... Qd3 {[%clk 0:00:11.2]} 63. Qg2
{[%clk 0:00:02.5]} 63... Qd1+ {[%clk 0:00:11.5]} 64. Kh2 {[%clk 0:00:03.1]}
64... Qd6+ {[%clk 0:00:12]} 65. Kg1 {[%clk 0:00:03.7]} 65... Qd1+ {[%clk
0:00:12.1]} 66. Qf1 {[%clk 0:00:04]} 66... Qd2 {[%clk 0:00:10.6]} 67. Qf6+
{[%clk 0:00:02.9]} 67... Kh7 {[%clk 0:00:10.4]} 68. Qxc6 {[%clk 0:00:03.1]}
68... Qxa2 {[%clk 0:00:10.5]} 69. Qd7+ {[%clk 0:00:03]} 69... Kg6 {[%clk
0:00:10.4]} 70. Qd3+ {[%clk 0:00:03.6]} 70... Kg7 {[%clk 0:00:10.7]} 71. Qc3+
{[%clk 0:00:03]} 71... Kh7 {[%clk 0:00:10.6]} 72. c5 {[%clk 0:00:03.6]} 72...
Qb1+ {[%clk 0:00:10.7]} 73. Kf2 {[%clk 0:00:03.9]} 73... Qf5+ {[%clk 0:00:10.6]}
74. Ke1 {[%clk 0:00:04.2]} 74... Qe4+ {[%clk 0:00:10.9]} 75. Kd2 {[%clk
0:00:04.3]} 75... Qg2+ {[%clk 0:00:10.4]} 76. Kc1 {[%clk 0:00:04.8]} 76... Qf1+
{[%clk 0:00:10.2]} 77. Kb2 {[%clk 0:00:05.1]} 77... Kg8 {[%clk 0:00:08.3]} 78.
Qc4+ {[%clk 0:00:04.7]} 1-0

[Event "Early-Titled-Tuesday-Blitz-January-16-2024"]
[Site "Chess.com"]
[Date "2024.01.16"]
[Round "10"]
[White "anasta10"]
[Black "alexrustemov"]
[Result "0-1"]
[WhiteElo "2512"]
[BlackElo "2826"]
[TimeControl "180+1"]
[EndTime "9:59:22 PST"]
[Termination "alexrustemov won by resignation"]

1. Nf3 {[%clk 0:03:00.9]} 1... d5 {[%clk 0:02:59.4]} 2. d4 {[%clk 0:03:00.7]}
2... Nf6 {[%clk 0:02:58.8]} 3. c4 {[%clk 0:03:01]} 3... c6 {[%clk 0:02:58.4]} 4.
Nc3 {[%clk 0:03:01.4]} 4... a6 {[%clk 0:02:57.3]} 5. cxd5 {[%clk 0:03:01.7]}
5... cxd5 {[%clk 0:02:57]} 6. Bf4 {[%clk 0:03:01.6]} 6... Nc6 {[%clk 0:02:57]}
7. e3 {[%clk 0:03:02.1]} 7... Bg4 {[%clk 0:02:55.1]} 8. Bd3 {[%clk 0:03:02.3]}
8... e6 {[%clk 0:02:53.1]} 9. Rc1 {[%clk 0:03:01.6]} 9... Bd6 {[%clk 0:02:49.4]}
10. Bg5 {[%clk 0:03:01.6]} 10... O-O {[%clk 0:02:47.6]} 11. h3 {[%clk
0:03:01.7]} 11... Bh5 {[%clk 0:02:46.3]} 12. O-O {[%clk 0:03:02.3]} 12... Rc8
{[%clk 0:02:43.5]} 13. a3 {[%clk 0:03:01.2]} 13... Be7 {[%clk 0:02:32]} 14. b4
{[%clk 0:02:49.2]} 14... Ne8 {[%clk 0:02:29.6]} 15. Bxe7 {[%clk 0:02:38.2]}
15... Qxe7 {[%clk 0:02:29.3]} 16. Be2 {[%clk 0:02:37.5]} 16... Bxf3 {[%clk
0:02:27.2]} 17. Bxf3 {[%clk 0:02:37.6]} 17... Nd6 {[%clk 0:02:27.4]} 18. Be2
{[%clk 0:02:38]} 18... b5 {[%clk 0:02:26.7]} 19. Bd3 {[%clk 0:02:32.2]} 19...
Nc4 {[%clk 0:02:26]} 20. Bxc4 {[%clk 0:02:31.7]} 20... dxc4 {[%clk 0:02:20.5]}
21. Qh5 {[%clk 0:02:21.5]} 21... Rfd8 {[%clk 0:02:16]} 22. Rfd1 {[%clk
0:02:21.5]} 22... g6 {[%clk 0:02:14.9]} 23. Qe2 {[%clk 0:02:18.5]} 23... Rd7
{[%clk 0:02:01.7]} 24. Ne4 {[%clk 0:02:16.6]} 24... a5 {[%clk 0:01:55.2]} 25.
Nc5 {[%clk 0:02:12.4]} 25... Ra7 {[%clk 0:01:49.4]} 26. Rb1 {[%clk 0:02:05.8]}
26... axb4 {[%clk 0:01:49.1]} 27. axb4 {[%clk 0:02:06.7]} 27... Qd6 {[%clk
0:01:41.7]} 28. Qb2 {[%clk 0:01:44.4]} 28... Qe7 {[%clk 0:01:31.5]} 29. d5
{[%clk 0:01:34.5]} 29... exd5 {[%clk 0:01:30.4]} 30. Rxd5 {[%clk 0:01:35.1]}
30... Nd8 {[%clk 0:01:22.7]} 31. Rbd1 {[%clk 0:01:31.4]} 31... Ne6 {[%clk
0:01:22.6]} 32. Ne4 {[%clk 0:01:03.7]} 32... h5 {[%clk 0:01:03.4]} 33. Nf6+
{[%clk 0:00:59.4]} 33... Kf8 {[%clk 0:01:01.8]} 34. Nxh5 {[%clk 0:00:56.1]}
34... Kg8 {[%clk 0:00:55.1]} 35. Nf6+ {[%clk 0:00:55]} 35... Kf8 {[%clk
0:00:55.5]} 36. Ne4 {[%clk 0:00:24.8]} 36... Kg8 {[%clk 0:00:50.8]} 37. Nc3
{[%clk 0:00:25.1]} 37... Rb7 {[%clk 0:00:45.1]} 38. Rxb5 {[%clk 0:00:22.7]}
38... Rxb5 {[%clk 0:00:43.1]} 39. Nxb5 {[%clk 0:00:23.6]} 39... Rb8 {[%clk
0:00:43.5]} 40. Nd4 {[%clk 0:00:16]} 40... Nxd4 {[%clk 0:00:37.7]} 41. Qxd4
{[%clk 0:00:15]} 41... Qxb4 {[%clk 0:00:37.4]} 42. Rc1 {[%clk 0:00:14.7]} 42...
Rc8 {[%clk 0:00:37.3]} 43. Rc3 {[%clk 0:00:12.9]} 43... Qb5 {[%clk 0:00:35.3]}
44. g3 {[%clk 0:00:11.4]} 44... Qc6 {[%clk 0:00:34.8]} 45. e4 {[%clk 0:00:09.6]}
45... Qe6 {[%clk 0:00:31.2]} 46. Kg2 {[%clk 0:00:09.1]} 46... Qc6 {[%clk
0:00:29.9]} 47. Qd5 {[%clk 0:00:09.3]} 47... Qc7 {[%clk 0:00:27.8]} 48. h4
{[%clk 0:00:08.4]} 48... Kg7 {[%clk 0:00:27.5]} 49. h5 {[%clk 0:00:08.6]} 49...
gxh5 {[%clk 0:00:21.2]} 50. Qg5+ {[%clk 0:00:08.4]} 50... Kf8 {[%clk 0:00:21]}
51. Qxh5 {[%clk 0:00:08.8]} 51... Qc6 {[%clk 0:00:21.2]} 52. Qe5 {[%clk
0:00:07.7]} 52... f6 {[%clk 0:00:19.9]} 53. Qf5 {[%clk 0:00:07.3]} 53... Ke7
{[%clk 0:00:18.9]} 54. Qf3 {[%clk 0:00:04.5]} 54... Qe6 {[%clk 0:00:16.2]} 55.
Qe3 {[%clk 0:00:04.2]} 55... Qe5 {[%clk 0:00:15.2]} 56. f4 {[%clk 0:00:04.2]}
56... Qc7 {[%clk 0:00:13.1]} 57. Kf3 {[%clk 0:00:03.1]} 57... Qc6 {[%clk
0:00:12.4]} 58. Kf2 {[%clk 0:00:03.3]} 58... Ke6 {[%clk 0:00:12.8]} 59. e5
{[%clk 0:00:03.4]} 59... f5 {[%clk 0:00:12.8]} 60. Qf3 {[%clk 0:00:03.6]} 60...
Qc5+ {[%clk 0:00:11.9]} 61. Kg2 {[%clk 0:00:04.2]} 61... Qd4 {[%clk 0:00:10.6]}
62. Qe3 {[%clk 0:00:04.2]} 62... Qd5+ {[%clk 0:00:10.7]} 63. Qf3 {[%clk
0:00:04.2]} 63... Rc6 {[%clk 0:00:11.5]} 64. Qxd5+ {[%clk 0:00:04.4]} 64... Kxd5
{[%clk 0:00:12.3]} 65. Kf3 {[%clk 0:00:05.1]} 65... Kd4 {[%clk 0:00:12.8]} 66.
Rc1 {[%clk 0:00:05.6]} 66... c3 {[%clk 0:00:12.8]} 67. Ke2 {[%clk 0:00:06.1]}
67... Kc4 {[%clk 0:00:13.1]} 68. Ke3 {[%clk 0:00:06.1]} 68... Kb3 {[%clk
0:00:12.7]} 69. Kd4 {[%clk 0:00:06.4]} 69... c2 {[%clk 0:00:13.3]} 70. Kd5
{[%clk 0:00:06.3]} 70... Rc3 {[%clk 0:00:13]} 71. e6 {[%clk 0:00:06.6]} 71...
Re3 {[%clk 0:00:09.9]} 72. Kd6 {[%clk 0:00:06.2]} 72... Kb2 {[%clk 0:00:10.4]}
73. Rxc2+ {[%clk 0:00:05.5]} 73... Kxc2 {[%clk 0:00:11]} 74. e7 {[%clk
0:00:06.4]} 74... Kd3 {[%clk 0:00:11.6]} 75. Kd7 {[%clk 0:00:07]} 75... Ke2
{[%clk 0:00:12]} 76. e8=Q {[%clk 0:00:07.2]} 76... Rxe8 {[%clk 0:00:12.3]} 77.
Kxe8 {[%clk 0:00:08.1]} 77... Kf3 {[%clk 0:00:13]} 78. Ke7 {[%clk 0:00:08.5]}
78... Kxg3 {[%clk 0:00:13.1]} 0-1